[Event "55th Biel Festival MTO 2022"]
[Site "Biel"]
[Date "2022.07.18"]
[Round "5.19"]
[White "Pavlovic Milos"]
[Black "Karthik Rajaa"]
[Result "1/2-1/2"]
[ECO "B10"]
[WhiteElo "2461"]
[BlackElo "2331"]
[Annotator "TA"]
[PlyCount "89"]
[EventDate "2022.07.13"]
[EventType "swiss"]
[EventCountry "SUI"]
[SourceTitle "playchess.com"]
[Source "ChessBase"]
[SourceQuality "1"]
[TimeControl "40/5400+30:1800+30"]

{[%evp 9,89,8,24,20,16,5,26,35,30,40,40,21,38,0,0,-4,41,43,43,18,143,132,177,196,192,174,256,249,243,238,238,230,228,208,209,191,360,288,262,0,414,398,330,328,677,677,660,634,1301,1256,1496,1495,1812,1235,1284,1284,1216,249,242,224,239,233,309,68,58,62,72,35,131,136,184,166,154,185,185,147,305,254,262,249,244,240]} 1. e4 {[%emt 0:00:24]} c6 {[%emt 0:01:14]} 2. Nf3 {[%emt 0:00:07]} d5 {[%emt 0:00:05]} 3. d3 {[%emt 0:00:06]} Bg4 {[%emt 0:11:17]} 4. h3 {[%emt 0:00:10]} Bh5 {[%emt 0:00:12]} 5. Qe2 {[%emt 0:02:32]} e6 {[%emt 0:04:10]} 6. g4 {[%emt 0:08:00] B10: Caro-Kann: 2 d3 and 2 c4.} Bg6 {[%emt 0:00:06]} 7. h4 {[%emt 0:00:04]} dxe4 {[%emt 0:01:44]} 8. dxe4 {[%emt 0:01:31] White has an edge.} h5 {[%emt 0:00:09]} 9. g5 {[%emt 0:03:26] [#]} Qc7 $146 {[%emt 0:09:27] Inhibits Bf4.} ({Predecessor:} 9... Nd7 10. Nbd2 Qc7 11. Bg2 a5 12. b3 a4 13. Bb2 b5 14. a3 f6 15. c4 b4 {0-1 (34) Michalik,P (2568)-Ghaem Maghami,E (2519) Warsaw 2021}) 10. Nc3 {[%emt 0:07:24]} Nd7 {[%emt 0:19:49]} 11. Bd2 {[%emt 0:14:43]} Bd6 {[%emt 0:11:06]} 12. O-O-O {[%emt 0:01:07]} O-O-O {[%emt 0:03:48]} 13. Nd4 {[%emt 0:09:12]} Ne7 {[%emt 0:03:48]} 14. Bh3 {[%emt 0:00:41][%cal Oh3e6]} Bf4 {[%emt 0:06:56] [#]} (14... Nc5 $11 {remains equal.}) 15. Bxe6 $1 $16 {[%emt 0:08:54][%mdl 512]} fxe6 {[%emt 0:05:08]} (15... Be5 16. Bxd7+) 16. Nxe6 {[%emt 0:00:17]} Bxd2+ {[%emt 0:00:04]} 17. Qxd2 {[%emt 0:01:16]} Qe5 {[%emt 0:10:14]} (17... Nb6 {is a better defense.} 18. Qxd8+ (18. Nxc7 Rxd2 19. Rxd2 Kxc7 $16) (18. Nxd8 Rxd8 19. Qxd8+ Qxd8 $16) 18... Rxd8) 18. Nxd8 $18 {[%emt 0:01:48]} Rxd8 {[%emt 0:00:02]} 19. Rh3 {[%emt 0:14:56][%cal Bh1h3,Bh3d3,Bd3d6][%mdl 32]} Qc7 {[%emt 0:03:23]} (19... Bxe4 $2 20. Re3 Qf4 21. Nxe4 $18) 20. Rd3 {[%emt 0:00:28]} Bf7 {[%emt 0:00:27]} 21. f4 {[%emt 0:10:38][%cal Bf2f4,Bf4f5][%mdl 32]} Ng6 {[%emt 0:00:40]} 22. Rd6 {[%emt 0:00:09] Threatens to win with Qd4.} Ngf8 $2 {[%emt 0:01:17]} (22... Ne7 23. Rd3 Ng6) 23. Qd4 {[%emt 0:02:11]} Qb6 {[%emt 0:00:58]} 24. Qd2 {[%emt 0:03:37]} (24. Qxg7 $142 Qe3+ 25. R6d2 Qxf4 26. Ne2) 24... Qc7 $1 {[%emt 0:01:22]} 25. f5 {[%emt 0:01:37]} Re8 {[%emt 0:02:36]} 26. Qd4 {[%emt 0:01:18][%csl LRa7,LRg7]} Ne5 $2 {[%emt 0:00:08]} (26... g6 27. Qxa7 Qb6) 27. Qxa7 {[%emt 0:00:14] Black must now prevent Qa8+.} Nfd7 {[%emt 0:00:44]} 28. Na4 {[%emt 0:02:17]} b5 {[%emt 0:01:54]} 29. Qa8+ {[%emt 0:01:32]} Nb8 {[%emt 0:00:30]} 30. Nc5 {[%emt 0:00:54]} b4 {[%emt 0:00:56]} 31. g6 {[%emt 0:00:57]} Bc4 {[%emt 0:00:43]} 32. Kb1 {[%emt 0:02:44]} Qb6 {[%emt 0:00:30]} 33. Nd7 $2 {[%emt 0:00:50]} (33. Na4 Qa6 {[#]} 34. Rd8+ $3 {[%mdl 512]} Rxd8 35. Rxd8+ Kxd8 36. Qxb8+ Qc8 37. Qxe5) 33... Nexd7 {[%emt 0:00:19]} 34. Rxd7 {[%emt 0:00:02] The board is on fire.} Be2 {[%emt 0:00:24]} 35. R1d4 {[%emt 0:00:08]} ({Stronger than} 35. Rxg7 Bxd1 36. f6 Bf3 $17) 35... Ba6 {[%emt 0:00:53]} 36. b3 $2 {[%emt 0:01:37]} (36. Qa7 $18 Qxa7 37. Rxa7) 36... Bb7 $14 {[%emt 0:00:25] [#]} 37. Rxb7 {[%emt 0:00:15]} Qxb7 {[%emt 0:00:07]} 38. Qa5 {[%emt 0:00:06] And now f6 would win. White is more active.} Qc7 {[%emt 0:01:16]} (38... Qb5 $14 39. Qa7 (39. Qxb4 Qxb4 40. Rxb4 Nd7 $11) 39... Qf1+ 40. Kb2 Qe1) 39. Qxb4 $16 {[%emt 0:00:14]} c5 {[%emt 0:00:20]} (39... Qe5 $16 40. Qb6 Qc7) 40. Qb5 $36 {[%emt 0:00:29][%mdl 2048] White has strong initiative.} Qc6 {[%emt 0:00:17]} 41. Qxc6+ {[%emt 0:30:33]} Nxc6 {[%emt 0:30:19]} 42. Rd5 {[%emt 0:01:15] f6 is the strong threat.} Rxe4 $2 {[%emt 0:01:02]} (42... Ne5 $16 {was called for.} 43. Rxc5+ Kb7) 43. Rxc5 {[%emt 0:00:57]} Kd7 {[%emt 0:00:25]} 44. f6 $1 {[%emt 0:00:00]} gxf6 {[%emt 0:00:00]} 45. Rxh5 {[%emt 0:00:00] Weighted Error Value: White=0.51/Black=0.43} 1/2-1/2

[Event "55th Biel Festival MTO 2022"]
[Site "Biel"]
[Date "2022.07.18"]
[Round "5.20"]
[White "Aziz, Husain"]
[Black "Licznerski Lukasz"]
[Result "0-1"]
[ECO "B13"]
[WhiteElo "2380"]
[BlackElo "2451"]
[Annotator "TA"]
[PlyCount "92"]
[EventDate "2022.07.13"]
[EventType "swiss"]
[EventCountry "SUI"]
[SourceTitle "playchess.com"]
[Source "ChessBase"]
[SourceQuality "1"]
[TimeControl "40/5400+30:1800+30"]

{[%evp 11,92,8,14,13,10,6,13,6,6,6,8,7,4,8,27,25,44,56,55,36,56,58,67,78,116,79,77,77,131,89,112,115,120,114,129,112,145,17,15,0,0,0,39,-37,-31,-43,0,-19,-36,-84,-72,-72,-22,-10,0,-100,-98,-96,-13,-61,-65,-246,-239,-272,-264,-324,-318,-637,-597,-589,-589,-4766,-4718,-7148,-6264,-6075,-5973,-5585,-4727,-29984,-29985,-29985,-29986]} 1. e4 {[%emt 0:00:05]} c6 {[%emt 0:10:33]} 2. d4 {[%emt 0:00:28]} d5 {[%emt 0:00:13]} 3. exd5 {[%emt 0:00:15]} cxd5 {[%emt 0:00:03]} 4. Bd3 {[%emt 0:00:16]} Nc6 {[%emt 0:00:21]} 5. c3 {[%emt 0:00:13]} Nf6 {[%emt 0:00:11]} 6. h3 {[%emt 0:00:17]} g6 {[%emt 0:00:15]} 7. Nf3 {[%emt 0:00:31] B13: Caro-Kann: Exchange Variation and Panov-Botvinnik Attack.} Bf5 {[%emt 0:00:27]} 8. Ne5 {[%emt 0:03:12] Recently 8.Be2 got a lot of attention.} Nxe5 {[%emt 0:10:44]} 9. dxe5 {[%emt 0:00:59] The position is equal.} Bxd3 {[%emt 0:00:43]} 10. Qxd3 {[%emt 0:00:11]} Ne4 {[%emt 0:00:04]} 11. Nd2 {[%emt 0:00:22]} Nxd2 {[%emt 0:00:57]} 12. Bxd2 {[%emt 0:00:09]} Bg7 {[%emt 0:05:21]} 13. f4 {[%emt 0:00:17] [#]} Rc8 $146 {[%emt 0:14:20]} ({Predecessor:} 13... O-O 14. Be3 Qd7 15. O-O-O Rfd8 16. g4 Qa4 17. Kb1 Rac8 18. Bd4 Qc4 19. Qd2 Rc6 {1-0 (33) Shevchenko,K (2592)-Girya,O (2469) Chess.com INT 2020}) 14. O-O-O {[%emt 0:05:49]} e6 {[%emt 0:09:45]} 15. Kb1 {[%emt 0:02:41]} Rc6 {[%emt 0:01:17]} 16. Be3 {[%emt 0:13:20]} Qa5 {[%emt 0:00:42]} 17. g4 {[%emt 0:02:51]} O-O {[%emt 0:04:38]} 18. Bd4 {[%emt 0:01:37]} Ra6 {[%emt 0:05:58]} 19. a3 {[%emt 0:01:16]} Rc8 {[%emt 0:00:02]} (19... Qa4 $142) 20. f5 {[%emt 0:05:28]} Bf8 {[%emt 0:03:53][%cal Of8a3]} 21. Rh2 {[%emt 0:00:27]} Qa4 {[%emt 0:00:57]} 22. Rf1 {[%emt 0:10:37]} Qb3 {[%emt 0:04:32] aiming for ...Rxa3.} 23. fxe6 {[%emt 0:05:19]} Rxe6 {[%emt 0:00:42]} 24. Rhf2 {[%emt 0:04:06]} ({But not} 24. Qf3 $6 Rc7 $14) (24. h4 $1 $16) 24... Rc7 $1 $11 {[%emt 0:01:35]} 25. Qc2 {[%emt 0:03:44]} Qb5 {[%emt 0:01:30]} 26. Ka2 {[%emt 0:01:06]} Bg7 {[%emt 0:03:22]} 27. Qb3 {[%emt 0:06:27]} (27. Bxa7 $14 Bxe5 28. Qb3) 27... Qxb3+ $15 {[%emt 0:04:48]} 28. Kxb3 {[%emt 0:00:04]} a6 {[%emt 0:00:23]} 29. Rd1 {[%emt 0:10:50]} Bxe5 {[%emt 0:00:21]} 30. Bxe5 {[%emt 0:01:30]} (30. Rfd2 $15) 30... Rxe5 $11 {[%emt 0:00:01][%mdl 4096] Endgame KRR-KRR} 31. Rfd2 {[%emt 0:00:11]} Rc5 {[%emt 0:02:28]} (31... Rd7 $17) 32. Kc2 $1 {[%emt 0:04:13]} h5 {[%emt 0:06:14]} 33. Rd4 {[%emt 0:04:49]} (33. b4 $1 $11 Rc4 34. Rxd5 Rxd5 35. Rxd5) 33... hxg4 $17 {[%emt 0:00:54]} 34. hxg4 {[%emt 0:00:10]} Kg7 {[%emt 0:01:38]} ({Better is} 34... Rc4 $17) 35. a4 {[%emt 0:03:38]} (35. b4 $1 $11 Rc4 36. Rxd5 Rxd5 37. Rxd5) 35... Rc4 $15 {[%emt 0:01:12]} 36. a5 $2 {[%emt 0:00:45] [#] White does not recover from this.} ({White should play} 36. Rxd5 $15 Rxd5 37. Rxd5) 36... Rxd4 $1 $19 {[%emt 0:01:23]} 37. Rxd4 {[%emt 0:00:09] [#] KR-KR} Kh6 $1 {[%emt 0:00:18]} 38. b4 {[%emt 0:05:04]} Kg5 {[%emt 0:00:38] Inhibits Rf4.} 39. c4 $2 {[%emt 0:03:31]} (39. Kd1) 39... dxc4 {[%emt 0:01:12]} 40. Rd7 {[%emt 0:00:02]} Rb5 {[%emt 0:01:12]} 41. Kc3 {[%emt 0:30:08]} Kxg4 {[%emt 0:31:03]} 42. Rxf7 {[%emt 0:00:07]} g5 {[%emt 0:00:09] Threatens to win with ...Kh3.} 43. Kxc4 {[%emt 0:00:15]} Kg3 {[%emt 0:00:02]} 44. Rc7 {[%emt 0:00:00]} g4 {[%emt 0:00:00]} 45. Rc5 {[%emt 0:00:00]} Rxc5+ {[%emt 0:00:00]} 46. Kxc5 {[%emt 0:00:00]} Kf4 {[%emt 0:00:00] Weighted Error Value: White=0.86/Black=0.18 (very precise)} 0-1

[Event "55th Biel Festival MTO 2022"]
[Site "Biel"]
[Date "2022.07.18"]
[Round "5.22"]
[White "Gurel Ediz"]
[Black "Lou Vincent"]
[Result "1-0"]
[ECO "B90"]
[WhiteElo "2435"]
[BlackElo "2200"]
[Annotator "TA"]
[PlyCount "113"]
[EventDate "2022.07.13"]
[EventType "swiss"]
[EventCountry "SUI"]
[SourceTitle "playchess.com"]
[Source "ChessBase"]
[SourceQuality "1"]
[TimeControl "40/5400+30:1800+30"]

{[%evp 12,113,14,4,29,17,34,16,19,32,23,39,46,21,42,49,44,8,33,2,0,-16,0,0,0,0,0,0,0,0,0,0,2,8,10,0,57,50,41,44,52,50,48,52,52,58,52,52,50,8,33,8,198,197,224,200,248,266,256,258,239,256,270,251,289,302,270,211,325,328,321,313,354,329,335,312,556,534,554,553,1259,1235,1288,1239,1234,1130,2216,1856,1644,1500,2363,2210,7162,2337,2513,2222,1654,1747,5539,2831,8907,6710,29993,29994]} 1. e4 {[%emt 0:00:04]} c5 {[%emt 0:00:05]} 2. Nf3 {[%emt 0:00:04][%cal Bg1f3,Bf3d4,Bd4e2,Be2c3][%mdl 32]} d6 {[%emt 0:00:06]} 3. d4 {[%emt 0:00:05]} cxd4 {[%emt 0:00:05]} 4. Nxd4 {[%emt 0:00:03]} Nf6 {[%emt 0:00:08]} 5. Nc3 {[%emt 0:00:05]} a6 {[%emt 0:00:05]} 6. h3 {[%emt 0:00:08]} e5 {[%emt 0:00:33]} 7. Nde2 {[%emt 0:00:06]} h5 {[%emt 0:00:19] B90: Sicilian Najdorf: Unusual White 6th moves, 6 Be3 Ng4 and 6 Be3 e5.} 8. g3 {[%emt 0:00:20]} Be7 {[%emt 0:02:11]} 9. Bg2 {[%emt 0:00:21]} b5 {[%emt 0:01:58] The position is equal.} 10. Nd5 {[%emt 0:00:33]} Nbd7 {[%emt 0:04:59]} 11. Nxe7 {[%emt 0:03:03]} Qxe7 {[%emt 0:00:20]} 12. Nc3 {[%emt 0:09:49]} Bb7 {[%emt 0:00:59]} 13. Bg5 {[%emt 0:01:16]} Qe6 {[%emt 0:08:40]} 14. O-O {[%emt 0:03:59]} O-O {[%emt 0:01:51]} (14... Rc8 {is more complex.} 15. h4 O-O 16. a3 Rxc3 17. bxc3 Nxe4 18. Qxh5 Ndf6) 15. h4 {[%emt 0:11:09]} Rac8 {[%emt 0:07:12] [#]} 16. Nd5 $146 {[%emt 0:20:02]} ({Predecessor:} 16. Re1 b4 17. Nd5 Nxd5 18. exd5 Qg6 19. Bf3 Nf6 20. Bxf6 Qxf6 21. Bxh5 Rc4 22. Re3 e4 23. c3 {½-½ (23) Frolyanov,D (2533)-Savitskiy,S (2431) Cheliabinsk 2021}) 16... Bxd5 {[%emt 0:03:09]} 17. exd5 {[%emt 0:00:04]} Qf5 {[%emt 0:00:18]} 18. c3 {[%emt 0:01:33]} Rfe8 {[%emt 0:15:24]} 19. a4 {[%emt 0:05:03]} e4 {[%emt 0:11:49]} 20. axb5 {[%emt 0:00:14]} axb5 {[%emt 0:00:05]} 21. Ra6 {[%emt 0:06:51]} Nxd5 {[%emt 0:03:52]} 22. Rxd6 {[%emt 0:01:10]} N7f6 {[%emt 0:01:13]} 23. Qe2 {[%emt 0:07:27]} e3 {[%emt 0:12:52]} (23... Rc5 $11) 24. Qf3 {[%emt 0:08:56]} ({Reject} 24. fxe3 Qe5 25. Ra6 (25. Rxd5 Nxd5 26. Qxh5 Nf6 $11) 25... Nxe3 $11) 24... exf2+ {[%emt 0:06:00]} (24... Qxf3 25. Bxf3 Re5 26. fxe3 $16) 25. Qxf2 {[%emt 0:00:20]} Qxf2+ {[%emt 0:04:18]} 26. Rxf2 {[%emt 0:00:03]} Re1+ {[%emt 0:01:48]} 27. Rf1 {[%emt 0:00:21]} Re5 {[%emt 0:01:05]} 28. Rd1 {[%emt 0:05:32][%cal Rg2d5]} Ne3 {[%emt 0:02:30]} 29. Re1 $36 {[%emt 0:01:27][%mdl 2048] Black is under pressure.} Nfg4 {[%emt 0:01:10]} 30. Bb7 {[%emt 0:01:37] A strong pair of Bishops.} (30. Bh3 $5 {[%cal Re1e3]} Ra8 31. Bxg4 Nxg4 32. Rxe5 Nxe5 33. Rd5 Nf3+ 34. Kf1 $14) 30... Rb8 {[%emt 0:08:41]} 31. Bf4 {[%emt 0:01:16]} Re7 {[%emt 0:00:07] [#] This costs Black the game.} (31... Nc4 $1 $11 {and Black stays safe.} 32. Bxe5 Nxd6 33. Bxd6 Rxb7) 32. Bf3 $1 $18 {[%emt 0:00:24] Hoping for Bxg4.} Rbe8 {[%emt 0:01:26] [#]} 33. Rb6 $1 {[%emt 0:01:45]} Nc4 {[%emt 0:00:23]} 34. Rxe7 {[%emt 0:00:04]} Rxe7 {[%emt 0:00:06]} 35. Rb8+ {[%emt 0:00:12]} ({Much less strong is} 35. Rxb5 Re1+ 36. Kg2 Nce3+ 37. Bxe3 Rxe3 38. Rxh5 Ne5 $18) 35... Kh7 {[%emt 0:00:32]} 36. Rxb5 {[%emt 0:01:04]} Re1+ {[%emt 0:00:26]} 37. Kg2 {[%emt 0:00:01]} g6 {[%emt 0:01:23]} 38. Bxg4 {[%emt 0:00:58]} hxg4 {[%emt 0:00:12][%mdl 4096] Endgame KRB-KRN} 39. Rb4 {[%emt 0:01:07]} Na5 {[%emt 0:00:53]} (39... Ne5 $142 40. Bxe5 Rxe5) 40. Kf2 {[%emt 0:00:39]} Rb1 {[%emt 0:00:21]} 41. Ke2 {[%emt 0:33:03]} Kg7 {[%emt 0:02:40]} 42. Kd3 {[%emt 0:00:00]} Nc6 {[%emt 0:00:57]} 43. Rb6 {[%emt 0:00:00]} Ne7 {[%emt 0:03:08]} (43... Nd8 {was necessary.} 44. b4 Ne6) 44. Be5+ {[%emt 0:00:00]} Kh6 {[%emt 0:00:45]} 45. Rb7 {[%emt 0:00:00]} Nd5 {[%emt 0:03:21]} 46. c4 {[%emt 0:00:00]} f6 {[%emt 0:01:54]} 47. Bd4 {[%emt 0:00:00]} Nf4+ {[%emt 0:04:28]} 48. gxf4 {[%emt 0:00:00] KRB-KR} g3 {[%emt 0:00:04]} 49. Ke2 {[%emt 0:00:00] aiming for Kf3.} g2 {[%emt 0:00:51]} 50. c5 {[%emt 0:00:00]} Rc1 {[%emt 0:02:33]} 51. Kf3 {[%emt 0:00:00]} Rd1 {[%emt 0:01:49]} 52. Bf2 {[%emt 0:00:00]} g1=Q {[%emt 0:00:20]} 53. Bxg1 {[%emt 0:00:00]} Rxg1 {[%emt 0:00:09]} 54. c6 {[%emt 0:00:00] And now c7 would win.} Rc1 {[%emt 0:00:30]} 55. c7 {[%emt 0:00:00] Black must now prevent b4.} f5 {[%emt 0:00:14]} 56. b4 {[%emt 0:00:00] Threatening mate with Ra7.} Kh5 {[%emt 0:00:33]} 57. c8=Q {[%emt 0:00:00] Weighted Error Value: White=0.09 (flawless) /Black=0.36} 1-0

[Event "55th Biel Festival MTO 2022"]
[Site "Biel"]
[Date "2022.07.18"]
[Round "5.23"]
[White "Krishna C R G"]
[Black "Kittler Thorsten"]
[Result "1-0"]
[ECO "E14"]
[WhiteElo "2430"]
[BlackElo "2226"]
[Annotator "TA"]
[PlyCount "59"]
[EventDate "2022.07.13"]
[EventType "swiss"]
[EventCountry "SUI"]
[SourceTitle "playchess.com"]
[Source "ChessBase"]
[SourceQuality "1"]
[TimeControl "40/5400+30:1800+30"]

{[%evp 12,59,9,16,58,42,41,38,43,34,54,55,56,56,56,56,56,51,55,31,51,43,54,38,50,51,68,62,66,53,68,64,70,70,75,79,128,126,108,107,146,131,131,133,137,137,159,161,184,180]} 1. d4 {[%emt 0:00:09]} Nf6 {[%emt 0:00:07]} 2. Nf3 {[%emt 0:00:07]} e6 {[%emt 0:00:10]} 3. e3 {[%emt 0:00:06]} b6 {[%emt 0:00:09]} 4. Bd3 {[%emt 0:00:06]} Bb7 {[%emt 0:00:06]} 5. O-O {[%emt 0:00:08]} Be7 {[%emt 0:00:13]} 6. c4 {[%emt 0:00:08]} O-O {[%emt 0:00:07]} 7. Nc3 {[%emt 0:00:06]} d6 {[%emt 0:00:30] E14: Queen's Indian: Classical Variation (4 e3).} 8. b3 {[%emt 0:01:42]} Nbd7 {[%emt 0:00:36]} 9. Bb2 {[%emt 0:00:13]} Re8 {[%emt 0:00:39] White is slightly better.} 10. d5 {[%emt 0:06:57]} e5 {[%emt 0:08:24] [#]} 11. Nd2 $146 {[%emt 0:02:18]} ({Predecessor:} 11. Qe2 c5 12. Qc2 Nf8 13. Rad1 a6 14. a4 Ng6 15. Nd2 Bc8 16. Ne2 b5 17. axb5 axb5 {1-0 (29) Marshall,M (1904)-Larsen,P Borup 2009}) 11... Bf8 {[%emt 0:02:49]} 12. Qc2 {[%emt 0:21:56]} g6 {[%emt 0:06:52]} 13. b4 {[%emt 0:04:29]} a5 {[%emt 0:01:13]} 14. a3 {[%emt 0:00:20]} Qe7 {[%emt 0:01:37]} 15. Rae1 {[%emt 0:07:19]} Bg7 {[%emt 0:06:22]} 16. Qb1 {[%emt 0:02:39]} Qd8 {[%emt 0:12:26]} 17. h3 {[%emt 0:01:35]} Nf8 {[%emt 0:08:51]} 18. Qc2 {[%emt 0:07:19]} N6d7 {[%emt 0:01:56]} 19. e4 {[%emt 0:01:38]} Qe7 {[%emt 0:06:01]} 20. Nb3 {[%emt 0:02:01]} axb4 {[%emt 0:00:20]} 21. axb4 {[%emt 0:00:02]} c6 {[%emt 0:06:17]} 22. Ra1 {[%emt 0:01:34]} c5 {[%emt 0:04:44]} 23. Ba3 {[%emt 0:06:05]} cxb4 {[%emt 0:04:26]} (23... Ra6 $142) 24. Bxb4 $16 {[%emt 0:00:50]} Nc5 {[%emt 0:00:02]} 25. Bxc5 {[%emt 0:02:12]} bxc5 {[%emt 0:00:05]} 26. Na5 {[%emt 0:01:18] White is clearly better.} Qd7 {[%emt 0:05:10]} 27. Nb5 {[%emt 0:04:49]} Reb8 {[%emt 0:02:15]} 28. Nxb7 {[%emt 0:01:40] White is much more active. Pair of Knights!} Rxa1 {[%emt 0:00:07]} 29. Rxa1 {[%emt 0:00:07]} Rxb7 {[%emt 0:00:12]} 30. Ra6 {[%emt 0:00:05] Weighted Error Value: White=0.04 (flawless) /Black=0.13 (very precise)} 1-0

[Event "55th Biel Festival MTO 2022"]
[Site "Biel"]
[Date "2022.07.18"]
[Round "5.24"]
[White "Hilby Craig"]
[Black "Aaron Deepak"]
[Result "1/2-1/2"]
[ECO "A46"]
[WhiteElo "2422"]
[BlackElo "2221"]
[Annotator "TA"]
[PlyCount "43"]
[EventDate "2022.07.13"]
[EventType "swiss"]
[EventCountry "SUI"]
[SourceTitle "playchess.com"]
[Source "ChessBase"]
[SourceQuality "1"]
[TimeControl "40/5400+30:1800+30"]

{[%evp 9,43,16,34,25,23,22,20,15,24,18,25,18,19,-10,0,0,0,0,0,0,0,0,10,0,20,0,0,9,20,-34,-14,-27,28,-24,0,-46]} 1. Nf3 {[%emt 0:05:58]} Nf6 {[%emt 0:00:14]} 2. d4 {[%emt 0:00:18]} e6 {[%emt 0:00:26]} 3. g3 {[%emt 0:00:23]} d5 {[%emt 0:01:12]} 4. Bg2 {[%emt 0:00:06]} b5 {[%emt 0:02:01]} 5. O-O {[%emt 0:00:44]} Bd6 {[%emt 0:01:13]} 6. a4 {[%emt 0:00:18] A46: 1 d4 Nf6 2 Nf3 e6: Torre, London and Colle Systems.} b4 {[%emt 0:02:20]} 7. c4 {[%emt 0:00:08]} bxc3 {[%emt 0:03:02]} 8. Nxc3 {[%emt 0:00:39][%cal Oe2e4]} Nbd7 {[%emt 0:03:13]} 9. Nb5 {[%emt 0:05:20]} O-O {[%emt 0:01:14]} 10. Nxd6 {[%emt 0:04:10]} cxd6 {[%emt 0:00:06] [#]} 11. Nd2 $146 {[%emt 0:00:09]} ({Predecessor:} 11. b3 Ba6 12. Re1 Ne4 13. e3 Qb6 14. Nd2 Nc3 15. Qf3 f5 16. Bb2 Ne4 17. Nxe4 fxe4 {0-1 (29) Santiago,R (1772)-Iordachescu,V (2585) Sharjah 2022}) 11... Rb8 {[%emt 0:03:07]} 12. b3 {[%emt 0:00:48]} Qb6 {[%emt 0:06:55]} 13. Ba3 {[%emt 0:00:20][%cal Oa4a5]} a5 {[%emt 0:00:44]} 14. Re1 {[%emt 0:22:04]} Ba6 {[%emt 0:02:41]} ({But not} 14... Qxd4 15. Bxd6 Ba6 16. Bxf8 (16. Bxb8 Rxb8 17. Rc1 h6 $16) 16... Rxf8 17. Rc1 $16) 15. e3 {[%emt 0:00:26]} Rfc8 {[%emt 0:01:43]} 16. Rc1 {[%emt 0:02:17]} e5 {[%emt 0:03:12]} 17. Bb2 {[%emt 0:02:18]} Rxc1 {[%emt 0:05:16]} 18. Qxc1 {[%emt 0:00:41]} Rc8 {[%emt 0:00:11]} 19. Bc3 {[%emt 0:04:44]} (19. Qa1 $11) 19... Qc7 {[%emt 0:04:02]} 20. Bb2 {[%emt 0:00:08]} Qb6 {[%emt 0:02:36]} ({Black should try} 20... Qc2) 21. Bc3 {[%emt 0:00:50]} ({Better is} 21. Qa1) 21... Qc7 {[%emt 0:00:32]} 22. Bb2 {[%emt 0:00:29] A balanced but interesting game.  Weighted Error Value: White=0.16 (very precise) /Black=0.12 (very precise)} 1/2-1/2